[Event "Paracin Open 2022"]
[Site "Paracin"]
[Date "2022.07.09"]
[Round "2.19"]
[White "Triantos, Konstantinos"]
[Black "Urazayev, Arystanbek"]
[Result "0-1"]
[ECO "C77"]
[WhiteElo "2210"]
[BlackElo "2430"]
[Annotator "RC"]
[PlyCount "88"]
[EventDate "2022.07.08"]
[EventCountry "SRB"]
[SourceTitle "playchess.com"]
[Source "ChessBase"]
[SourceQuality "1"]
[TimeControl "5400+30"]

1. e4 {[%emt 0:00:06]} e5 {[%emt 0:00:19]} 2. Nf3 {[%emt 0:00:40]} Nc6 {[%emt 0:00:08]} 3. Bb5 {[%emt 0:02:11]} a6 {[%emt 0:00:10]} 4. Ba4 {[%emt 0:01:29]} Nf6 {[%emt 0:00:12]} 5. d3 {[%emt 0:02:24]} Bc5 {[%emt 0:00:09]} 6. O-O {[%emt 0:05:41]} d6 {[%emt 0:00:47]} 7. Be3 {[%emt 0:09:12]} Bxe3 {[%emt 0:01:26]} 8. fxe3 {[%emt 0:00:05]} b5 {[%emt 0:02:38]} 9. Bb3 {[%emt 0:00:09]} Na5 {[%emt 0:00:23]} 10. Nc3 {[%emt 0:07:00]} O-O {[%emt 0:02:19]} 11. Qe1 {[%emt 0:03:38]} Nxb3 {[%emt 0:02:15]} 12. axb3 {[%emt 0:00:32]} Be6 {[%emt 0:01:42]} 13. h3 {[%emt 0:10:24]} c6 {[%emt 0:03:22]} 14. Qh4 {[%emt 0:10:12]} h6 {[%emt 0:04:11]} 15. d4 {[%emt 0:05:22]} Qc7 {[%emt 0:11:28]} 16. b4 {[%emt 0:14:31]} Rfe8 {[%emt 0:03:36]} 17. Qg3 {[%emt 0:06:23]} a5 {[%emt 0:04:30]} 18. dxe5 {[%emt 0:10:30]} dxe5 {[%emt 0:01:13]} 19. Qxe5 {[%emt 0:03:22]} Qxe5 {[%emt 0:00:23]} 20. Nxe5 {[%emt 0:00:03]} axb4 {[%emt 0:00:08]} 21. Ne2 {[%emt 0:01:18]} c5 {[%emt 0:04:28]} 22. Ng3 {[%emt 0:02:32]} b3 {[%emt 0:02:18]} 23. cxb3 {[%emt 0:00:25]} Bxb3 {[%emt 0:00:28]} 24. Nd3 {[%emt 0:01:15]} Nd7 {[%emt 0:06:44]} 25. Nf4 {[%emt 0:02:11]} Nb6 {[%emt 0:04:01]} 26. Nd3 {[%emt 0:01:16]} Na4 {[%emt 0:02:33]} 27. Rf5 {[%emt 0:00:32]} g6 {[%emt 0:03:27]} 28. Rf2 {[%emt 0:00:09]} Rad8 {[%emt 0:05:51]} 29. Nc1 {[%emt 0:00:20]} Be6 {[%emt 0:01:12]} 30. b3 {[%emt 0:00:45]} Nc3 {[%emt 0:02:45]} 31. Ra5 {[%emt 0:00:12]} Rd1+ {[%emt 0:00:40]} 32. Rf1 {[%emt 0:00:06]} Red8 {[%emt 0:02:29]} 33. Nce2 {[%emt 0:00:35]} Nxe2+ {[%emt 0:01:10]} 34. Nxe2 {[%emt 0:00:04]} Bxb3 {[%emt 0:00:10]} 35. Nc3 {[%emt 0:01:44]} Rxf1+ {[%emt 0:01:49]} 36. Kxf1 {[%emt 0:00:04]} b4 {[%emt 0:03:02]} 37. Ne2 {[%emt 0:00:12]} Rc8 {[%emt 0:01:00]} 38. Ke1 {[%emt 0:00:20]} Bc2 {[%emt 0:01:38]} 39. Ng3 {[%emt 0:01:06]} c4 {[%emt 0:01:36]} 40. Kd2 {[%emt 0:00:20]} Bd3 {[%emt 0:00:36]} 41. Rb5 {[%emt 0:00:29]} Ra8 {[%emt 0:01:11]} 42. Rxb4 {[%emt 0:00:20]} Ra2+ {[%emt 0:00:05]} 43. Kc3 {[%emt 0:00:25]} Rxg2 {[%emt 0:00:04]} 44. Nh1 {[%emt 0:00:46]} Rh2 {[%emt 0:00:05]} 0-1

[Event "Paracin Open 2022"]
[Site "Paracin"]
[Date "2022.07.09"]
[Round "2.20"]
[White "Gan-Erdene, Sugar"]
[Black "Durak, Can"]
[Result "1-0"]
[ECO "E05"]
[WhiteElo "2428"]
[BlackElo "2221"]
[Annotator "RC"]
[PlyCount "69"]
[EventDate "2022.07.08"]
[EventCountry "SRB"]
[SourceTitle "playchess.com"]
[Source "ChessBase"]
[SourceQuality "1"]
[TimeControl "5400+30"]

1. d4 {[%emt 0:00:05]} d5 {[%emt 0:00:36]} 2. c4 {[%emt 0:00:08]} e6 {[%emt 0:01:02]} 3. Nf3 {[%emt 0:00:15]} Nf6 {[%emt 0:02:10]} 4. g3 {[%emt 0:00:28]} Be7 {[%emt 0:02:33]} 5. Bg2 {[%emt 0:00:28]} O-O {[%emt 0:01:17]} 6. O-O {[%emt 0:00:16]} dxc4 {[%emt 0:03:03]} 7. Qa4 {[%emt 0:00:30]} a6 {[%emt 0:02:50]} 8. Qxc4 {[%emt 0:00:07]} b5 {[%emt 0:00:49]} 9. Qc2 {[%emt 0:00:06]} Bb7 {[%emt 0:00:09]} 10. Bd2 {[%emt 0:00:17]} Be4 {[%emt 0:05:16]} 11. Qc1 {[%emt 0:00:40]} Qc8 {[%emt 0:01:44]} 12. Bg5 {[%emt 0:21:49]} Nbd7 {[%emt 0:02:53]} 13. Nbd2 {[%emt 0:02:53]} Bb7 {[%emt 0:00:53]} 14. Nb3 {[%emt 0:04:39]} c5 {[%emt 0:07:48]} 15. Bxf6 {[%emt 0:12:09]} gxf6 {[%emt 0:00:10]} 16. Qf4 {[%emt 0:00:34]} Qb8 {[%emt 0:04:31]} 17. Qg4+ {[%emt 0:09:54]} Kh8 {[%emt 0:00:04]} 18. Nxc5 {[%emt 0:05:17]} Nxc5 {[%emt 0:01:36]} 19. dxc5 {[%emt 0:00:05]} Bxc5 {[%emt 0:00:12]} 20. Rfd1 {[%emt 0:01:05]} Bxf3 {[%emt 0:05:08]} 21. Bxf3 {[%emt 0:06:21]} Ra7 {[%emt 0:00:23]} 22. Rac1 {[%emt 0:01:14]} f5 {[%emt 0:07:20]} 23. Qh4 {[%emt 0:05:57]} Qe5 {[%emt 0:01:41]} 24. Rd8 {[%emt 0:00:33]} Rc7 {[%emt 0:04:23]} 25. Rcd1 {[%emt 0:14:30]} Rc8 {[%emt 0:01:45]} 26. Rxc8 {[%emt 0:00:29]} Rxc8 {[%emt 0:00:02]} 27. Rd7 {[%emt 0:00:12]} Rf8 {[%emt 0:02:06]} 28. b4 {[%emt 0:02:18]} Bb6 {[%emt 0:03:00]} 29. Bh5 {[%emt 0:03:18]} Qg7 {[%emt 0:03:13]} 30. Qe7 {[%emt 0:00:51]} f4 {[%emt 0:01:01]} 31. Qd6 {[%emt 0:00:45]} fxg3 {[%emt 0:01:20]} 32. hxg3 {[%emt 0:01:32]} Qh6 {[%emt 0:00:48]} 33. Bf3 {[%emt 0:00:27]} Qc1+ {[%emt 0:00:54]} 34. Kg2 {[%emt 0:00:04]} Qc8 {[%emt 0:00:07]} 35. Rb7 {[%emt 0:00:07]} 1-0

[Event "Paracin Open 2022"]
[Site "Paracin"]
[Date "2022.07.09"]
[Round "3.1"]
[White "Predke, Alexandr"]
[Black "Gan-Erdene, Sugar"]
[Result "1-0"]
[ECO "E73"]
[WhiteElo "2688"]
[BlackElo "2428"]
[Annotator "TA"]
[PlyCount "101"]
[EventDate "2022.07.08"]
[EventCountry "SRB"]
[SourceTitle "playchess.com"]
[Source "ChessBase"]
[SourceQuality "1"]
[TimeControl "5400+30"]

{[%evp 13,101,35,35,41,41,29,31,32,32,30,32,33,67,88,93,90,94,36,64,65,97,95,92,91,91,93,93,8,11,13,14,0,14,0,0,0,0,0,0,0,0,-5,13,15,56,33,31,25,58,39,21,21,31,22,21,56,45,47,46,49,197,187,173,101,330,319,287,270,230,192,379,365,1303,1281,5431,5506,1804,2175,29976,29977,29977,29978,29978,29979,29980,29980,29981,29982,29982,29982]} 1. d4 {[%emt 0:00:23]} Nf6 {[%emt 0:00:07]} 2. c4 {[%emt 0:00:03]} g6 {[%emt 0:00:09]} 3. Nc3 {[%emt 0:00:04]} Bg7 {[%emt 0:00:05]} 4. e4 {[%emt 0:00:03]} d6 {[%emt 0:00:08]} 5. Be2 {[%emt 0:00:04]} O-O {[%emt 0:00:55]} 6. Be3 {[%emt 0:00:09]} c5 {[%emt 0:08:06]} 7. d5 {[%emt 0:00:21]} e6 {[%emt 0:00:32]} 8. Nf3 {[%emt 0:00:10] E73: King's Indian: Averbakh Variation without 6...c5.} exd5 {[%emt 0:02:23]} 9. cxd5 {[%emt 0:00:07]} Re8 {[%emt 0:16:59]} 10. Nd2 {[%emt 0:01:17] White is slightly better.} Na6 {[%emt 0:00:17]} 11. O-O {[%emt 0:01:03]} Nc7 {[%emt 0:01:16][%cal Ob7b5]} 12. a4 {[%emt 0:08:03][%cal Ba2a4,Ba4a5,Ba5b6][%mdl 32] Prevents b5.} a6 {[%emt 0:10:45]} 13. Bf4 {[%emt 0:13:53]} Rb8 {[%emt 0:09:42]} 14. a5 $1 {[%emt 0:00:40]} Bf8 {[%emt 0:00:25] [#]} 15. Bf3 $146 {[%emt 0:03:37]} ({Better is} 15. Bd3 $16) ({Predecessor:} 15. Qc2 Bd7 16. Nc4 Bb5 17. Rfe1 Bxc4 18. Bxc4 Nd7 19. Bg3 Qe7 20. f4 Bg7 21. Rad1 {0-1 (39) Chau Thi Ngoc,G (2128)-Hoang,P Vung Tau 2000}) 15... b5 {[%emt 0:06:55]} 16. axb6 $1 {[%emt 0:00:21]} Rxb6 {[%emt 0:00:09]} 17. Nc4 {[%emt 0:01:55]} Rb4 {[%emt 0:00:17]} 18. b3 {[%emt 0:02:22]} h6 {[%emt 0:20:52]} 19. h3 {[%emt 0:04:05][%cal Bh2h3,Bh3h4][%mdl 32]} Nh7 {[%emt 0:01:21][%cal Bf6h7,Bh7g5,Bg5f3][%mdl 32]} 20. Na2 {[%emt 0:16:44] White is more active.} (20. Re1 $1 $16) 20... Rb8 $1 $11 {[%emt 0:02:22]} 21. e5 {[%emt 0:01:00]} Nb5 {[%emt 0:00:35]} 22. exd6 {[%emt 0:01:53]} Nxd6 {[%emt 0:00:05]} 23. Nc3 {[%emt 0:02:47][%cal Oc3e4]} Ng5 {[%emt 0:01:52] Inhibits Ne4.} 24. h4 {[%emt 0:01:57]} Nxf3+ {[%emt 0:00:20]} 25. Qxf3 {[%emt 0:00:03] And now Bxd6 would win.} (25. gxf3 Bf5 26. Rxa6 Nxc4 27. bxc4 (27. Bxb8 $2 Nb2 $19) 27... Qxh4 28. Bxb8 Rxb8 $19) 25... Nxc4 {[%emt 0:10:56]} 26. bxc4 {[%emt 0:02:44]} Rb3 {[%emt 0:00:05]} 27. Rae1 {[%emt 0:04:10]} Rxe1 {[%emt 0:02:17]} 28. Rxe1 {[%emt 0:00:04]} Qxh4 {[%emt 0:00:13][%cal Ob3c3]} 29. Re8 {[%emt 0:10:25]} Bd7 {[%emt 0:02:57]} 30. Ra8 {[%emt 0:00:05]} Rxc3 $1 {[%emt 0:01:12]} 31. Rxf8+ $1 {[%emt 0:00:12][%mdl 64] Remove Defender} Kxf8 {[%emt 0:00:04]} 32. Bd6+ {[%emt 0:00:06]} Kg8 {[%emt 0:00:09] ( -> ...Rc1+)} 33. Qxc3 {[%emt 0:00:03]} Qd4 {[%emt 0:01:11]} 34. Qxd4 {[%emt 0:02:34]} cxd4 {[%emt 0:00:04][%mdl 4096] Endgame KB-KB} 35. Kf1 {[%emt 0:00:01]} Bf5 {[%emt 0:00:34]} 36. Ke2 {[%emt 0:00:03][%mdl 1024] Inhibits Bd3+. White has compensation.} f6 {[%emt 0:00:20]} (36... a5 $1 $14) 37. Bc7 $1 $18 {[%emt 0:01:57]} Kf7 {[%emt 0:00:44]} 38. Bb6 {[%emt 0:00:06]} d3+ $2 {[%emt 0:00:17] [#]} (38... g5 $16) 39. Ke3 $1 {[%emt 0:00:03]} g5 {[%emt 0:00:52] [#]} 40. Ba5 $1 {[%emt 0:03:29]} h5 {[%emt 0:00:18]} 41. c5 {[%emt 0:00:05][%cal Bc4c5,Bc5c6][%mdl 32] aiming for c6.} h4 $2 {[%emt 0:00:51]} (41... Ke7 {might work better.} 42. c6 Kd6) 42. f3 {[%emt 0:00:10] Hoping for c6.} Ke8 $2 {[%emt 0:00:53]} (42... Ke7 43. Kd4 Bg6) 43. c6 {[%emt 0:01:12]} h3 {[%emt 0:00:46]} 44. gxh3 {[%emt 0:00:14] White threatens d6 and mate.} Bxh3 {[%emt 0:00:04]} 45. d6 {[%emt 0:03:53]} Bd7 {[%emt 0:00:37]} 46. cxd7+ {[%emt 0:00:12] White mates.} Kxd7 {[%emt 0:00:03]} 47. Bb4 {[%emt 0:00:03]} a5 {[%emt 0:00:29]} 48. Ba3 {[%emt 0:00:06]} Ke6 {[%emt 0:00:25]} 49. Kxd3 {[%emt 0:00:07]} f5 {[%emt 0:00:18]} 50. Kd4 {[%emt 0:00:21]} a4 {[%emt 0:00:16]} 51. Bb4 {[%emt 0:00:05] Weighted Error Value: White=0.07 (flawless) /Black=0.40} 1-0

[Event "Paracin Open 2022"]
[Site "Paracin"]
[Date "2022.07.09"]
[Round "3.2"]
[White "Amartuvshin, Ganzorig"]
[Black "Praggnanandhaa R"]
[Result "0-1"]
[ECO "D27"]
[WhiteElo "2409"]
[BlackElo "2648"]
[Annotator "TA"]
[PlyCount "110"]
[EventDate "2022.07.08"]
[EventCountry "SRB"]
[SourceTitle "playchess.com"]
[Source "ChessBase"]
[SourceQuality "1"]
[TimeControl "5400+30"]

{[%evp 22,110,13,0,14,14,5,0,-10,-11,-11,-27,-27,-16,0,0,0,0,14,0,0,0,0,-41,0,0,0,-2,-7,0,0,-33,4,-48,0,-41,0,0,0,-24,0,-25,-19,-21,0,-10,0,-4,-5,-7,-10,-24,-14,-81,-79,-83,-78,-87,-83,-106,-54,-68,-49,-91,-75,-92,-93,-102,-78,-120,-95,-135,-130,-203,-208,-261,-207,-184,-202,-194,-175,-182,-177,-265,-248,-443,-426,-499,-461,-626,-565]} 1. d4 {[%emt 0:00:02]} Nf6 {[%emt 0:00:59]} 2. c4 {[%emt 0:00:07]} e6 {[%emt 0:00:09]} 3. Nf3 {[%emt 0:00:08]} d5 {[%emt 0:00:22]} 4. Nc3 {[%emt 0:00:09]} dxc4 {[%emt 0:00:32]} 5. e3 {[%emt 0:01:47]} a6 {[%emt 0:00:20]} 6. a4 {[%emt 0:00:30]} c5 {[%emt 0:01:54]} 7. Bxc4 {[%emt 0:00:19]} Nc6 {[%emt 0:00:31]} 8. O-O {[%emt 0:00:37]} cxd4 {[%emt 0:04:56]} 9. exd4 {[%emt 0:00:51]} Be7 {[%emt 0:00:22]} 10. Re1 {[%emt 1:31:00]} O-O {[%emt 0:07:38]} 11. Bg5 {[%emt 0:00:00] 11.Bf4 injects fresh life into this line.} h6 {[%emt 0:10:07]} 12. Bh4 {[%emt 0:00:00]} Nh5 {[%emt 0:03:13] D27: Queen's Gambit Accepted: Classical main line: 7 e4!? and 7 a4.} 13. Bxe7 {[%emt 0:00:00]} Nxe7 {[%emt 0:00:25]} 14. a5 {[%emt 0:00:00]} Nf6 {[%emt 0:07:48] The position is equal.} 15. Ne5 {[%emt 0:00:00]} Rb8 {[%emt 0:04:29][%cal Ba8b8,Bb8b7,Bb7c7][%mdl 32]} 16. Qd3 {[%emt 0:00:00]} b5 {[%emt 0:09:41] [#]} 17. Bb3 $146 {[%emt 0:00:00]} ({Predecessor:} 17. axb6 Rxb6 18. b3 Rd6 19. Red1 Qb6 20. Na4 Qb4 21. Nc5 Nf5 22. Ra4 Qb6 23. Bxa6 Nxd4 24. Rxd4 Rxd4 25. Qxd4 Bxa6 {½-½ (41) Polgar,Z (2430)-Garcia Palermo,C (2515) Dortmund 1985}) 17... Rb7 {[%emt 0:11:59]} 18. f3 {[%emt 0:00:00]} Rc7 {[%emt 0:12:17]} 19. Ne4 {[%emt 0:00:00] Inhibits Qd6.} Nfd5 {[%emt 0:02:30]} 20. Nc5 {[%emt 0:00:00]} Nf5 {[%emt 0:02:53] Threatens to win with ...Nf4.} 21. Rad1 {[%emt 0:00:20]} Qd6 {[%emt 0:02:58]} 22. Qd2 {[%emt 0:02:45] [#]} Nxd4 $1 {[%emt 0:02:37]} 23. Qxd4 {[%emt 0:00:11]} Rxc5 {[%emt 0:00:22]} 24. Nd3 {[%emt 0:00:10]} Rc7 {[%emt 0:01:13]} 25. Bxd5 {[%emt 0:00:50]} exd5 {[%emt 0:00:09]} 26. b3 {[%emt 0:02:05]} Bb7 {[%emt 0:01:35]} 27. Nb4 {[%emt 0:00:58]} (27. b4 $11) 27... Rd8 {[%emt 0:00:42]} (27... Rfc8 $1 $15) 28. h4 {[%emt 0:00:23]} Re7 {[%emt 0:02:53]} (28... Rdc8 $5 {[%cal Rc7c3]}) 29. Nd3 {[%emt 0:00:46]} Rc7 {[%emt 0:01:15]} 30. Nb4 {[%emt 0:00:23]} Kf8 {[%emt 0:01:12]} 31. Rc1 {[%emt 0:00:48]} Rdc8 {[%emt 0:00:23]} 32. Rcd1 {[%emt 0:00:15]} Qc5 {[%emt 0:01:37]} 33. Kf2 {[%emt 0:00:32]} Rd8 {[%emt 0:01:32]} 34. Re2 {[%emt 0:00:32]} Qxd4+ {[%emt 0:01:23]} 35. Rxd4 {[%emt 0:00:07]} Rc3 {[%emt 0:00:41]} 36. Re3 {[%emt 0:00:24]} Rc1 {[%emt 0:00:14]} 37. Red3 {[%emt 0:00:29]} (37. Rd2 $11) 37... Ra1 $17 {[%emt 0:01:07]} 38. Rc3 {[%emt 0:00:32]} Rd7 {[%emt 0:00:54] Against Rc7} 39. Nc2 {[%emt 0:01:13]} Rxa5 {[%emt 0:00:15]} 40. Ke2 {[%emt 0:00:09]} Ke7 {[%emt 0:01:28]} ({Better is} 40... Rd8 $17 41. Kd2 Ke7) 41. Kd2 {[%emt 0:00:07]} Kd6 {[%emt 0:00:43]} 42. Kc1 {[%emt 0:00:34]} Re7 {[%emt 0:00:40]} 43. Rd2 {[%emt 0:01:01]} b4 {[%emt 0:01:21]} 44. Nxb4 {[%emt 0:00:06]} Rc5 {[%emt 0:00:53]} 45. Kb2 {[%emt 0:00:12]} a5 {[%emt 0:00:24]} 46. Nd3 {[%emt 0:00:17]} Rb5 {[%emt 0:00:23]} 47. f4 {[%emt 0:01:01]} (47. Kc2 $17) 47... f6 $19 {[%emt 0:00:35]} 48. f5 {[%emt 0:01:05]} Re3 {[%emt 0:01:12]} 49. Nf4 {[%emt 0:00:29]} Re4 {[%emt 0:00:41]} 50. Ne6 {[%emt 0:00:43]} g5 {[%emt 0:00:27]} 51. hxg5 {[%emt 0:00:23]} hxg5 {[%emt 0:00:01]} 52. Nd8 {[%emt 0:00:29]} (52. Nd4 $142 Rc5 53. Rh3) 52... d4 {[%emt 0:00:57] Hoping for ...Bd5.} 53. Nf7+ $2 {[%emt 0:00:40]} (53. Nxb7+ Rxb7 54. Ka3) 53... Kd7 {[%emt 0:00:22] [#] And now ...Bd5 would win. Black is clearly winning.} 54. Nh6 {[%emt 0:00:21]} Bd5 {[%emt 0:00:17] Against Rc4} 55. Rg3 {[%emt 0:00:16]} Re3 {[%emt 0:00:34] Weighted Error Value: White=0.27 (precise) /Black=0.10 (very precise)} 0-1

[Event "Paracin Open 2022"]
[Site "Paracin"]
[Date "2022.07.09"]
[Round "3.3"]
[White "Muthaiah AL"]
[Black "Makarian, Rudik"]
[Result "0-1"]
[ECO "A45"]
[WhiteElo "2401"]
[BlackElo "2533"]
[Annotator "TA"]
[PlyCount "96"]
[EventDate "2022.07.08"]
[EventCountry "SRB"]
[SourceTitle "playchess.com"]
[Source "ChessBase"]
[SourceQuality "1"]
[TimeControl "5400+30"]

{[%evp 9,96,11,13,16,21,16,31,18,18,0,7,0,21,0,17,14,15,18,19,31,17,0,0,0,0,0,0,-7,-8,0,-4,-4,-5,-18,0,-30,-24,-56,-38,-56,-40,-72,-70,-62,-62,-125,-100,-107,-125,-112,-111,-110,-94,-102,-94,-73,-2,-20,0,-205,-194,-189,-186,-641,-253,-633,-623,-592,-559,-931,-893,-1246,-1030,-6095,-5540,-29972,-29973,-29973,-29978,-29978,-29979,-29979,-29980,-29980,-29981,-29981,-29982,-29982,-29982]} 1. d4 {[%emt 0:00:13]} Nf6 {[%emt 0:00:15]} 2. Bf4 {[%emt 0:00:27]} c5 {[%emt 0:00:25]} 3. e3 {[%emt 0:01:34]} Qb6 {[%emt 0:00:43]} 4. Nc3 {[%emt 0:01:54]} d6 {[%emt 0:00:10]} 5. Bb5+ {[%emt 0:10:07]} Nbd7 {[%emt 0:09:12]} 6. a4 {[%emt 0:06:23][%cal Ba2a4,Ba4a5][%mdl 32] A45: Trompowsky Attack.} a6 {[%emt 0:00:23]} 7. a5 {[%emt 0:00:18]} Qc7 {[%emt 0:00:08]} 8. Be2 {[%emt 0:00:14] White is slightly better.} g6 {[%emt 0:00:07]} 9. h3 {[%emt 0:02:56]} Bg7 {[%emt 0:01:10]} 10. Nf3 {[%emt 0:00:29]} O-O {[%emt 0:00:11]} 11. O-O {[%emt 0:00:30]} b5 {[%emt 0:10:10]} 12. axb6 $1 {[%emt 0:00:37]} Nxb6 {[%emt 0:00:09][%cal Bd7b6,Bb6d5,Bd5f4][%mdl 32]} 13. d5 {[%emt 0:07:41] [#]} Nh5 $146 {[%emt 0:13:31]} ({Predecessor:} 13... Bb7 14. e4 Rfb8 15. Qd2 Nfd7 16. Ra2 c4 17. Re1 Nc5 18. Bf1 Rd8 19. Be3 e6 20. dxe6 fxe6 {0-1 (53) Semenov,V (1988)-Bedia,M (2428) Gelendzhik 2015}) 14. Bh2 $1 {[%emt 0:03:57]} f5 {[%emt 0:06:08]} 15. Nd2 {[%emt 0:15:14]} Bxc3 {[%emt 0:08:32]} 16. bxc3 {[%emt 0:00:34]} Nxd5 {[%emt 0:01:12]} 17. Bc4 {[%emt 0:02:44]} Be6 {[%emt 0:11:08]} 18. e4 {[%emt 0:05:16]} fxe4 {[%emt 0:01:01]} 19. Nxe4 {[%emt 0:00:11]} Ndf4 $1 {[%emt 0:01:48]} 20. Bxe6+ {[%emt 0:14:14]} Nxe6 {[%emt 0:00:02]} 21. Qd5 {[%emt 0:00:18]} Nhg7 {[%emt 0:02:53]} 22. Ng5 {[%emt 0:07:21]} Qc8 {[%emt 0:00:55] Hoping for ...Rf5.} 23. g4 {[%emt 0:00:08] Inhibits Rf5. Rae1 is the strong threat.} h6 {[%emt 0:01:08]} 24. Nf3 {[%emt 0:00:25]} Kh7 {[%emt 0:01:21]} 25. Nh4 {[%emt 0:06:39]} Nf4 {[%emt 0:01:45]} 26. Bxf4 {[%emt 0:02:23][%mdl 64] Remove Defender} Rxf4 {[%emt 0:00:02]} 27. Rfe1 {[%emt 0:00:33]} (27. Ng2 $15 Rf8 28. Ra4) 27... Ra7 {[%emt 0:00:07]} ({And not} 27... Qe8 28. Ng2 Rf7 29. Ra5 $15 (29. Qe4 Ra7 $17)) 28. Qd3 {[%emt 0:05:24] [#]} Rf6 {[%emt 0:01:18]} 29. Re4 {[%emt 0:00:09][%cal Be1e4,Be4a4,Ba4a6,Ba6a7][%mdl 32]} e5 {[%emt 0:05:38][%cal Be7e5,Be5e4][%mdl 32] Inhibits f4.} 30. Rea4 {[%emt 0:00:25]} Qe6 {[%emt 0:05:28]} 31. Rxa6 {[%emt 0:00:32] [#]} e4 $1 {[%emt 0:00:06]} 32. Qg3 {[%emt 0:01:06]} Rd7 {[%emt 0:02:21]} (32... Raf7 $17 {Black wants to play ...Qc4.} 33. Rd1 g5) 33. Ra7 $1 $11 {[%emt 0:01:01]} g5 {[%emt 0:00:47]} 34. Nf5 {[%emt 0:04:14] White is now going downhill.} (34. Ng2 $11) 34... Nxf5 $19 {[%emt 0:00:07]} 35. gxf5 {[%emt 0:00:05]} Qxf5 {[%emt 0:00:35]} 36. Qg4 $2 {[%emt 0:00:34]} (36. h4) 36... Qxf2+ {[%emt 0:05:53]} 37. Kh1 {[%emt 0:00:01]} Rxa7 {[%emt 0:00:15]} 38. Rxa7+ {[%emt 0:00:27][%mdl 4096] Endgame KQR-KQR} Kh8 {[%emt 0:00:17]} 39. Ra8+ {[%emt 0:00:42]} Kg7 {[%emt 0:00:07] ( -> ...Qf1+)} 40. Ra7+ {[%emt 0:00:08]} Rf7 {[%emt 0:00:04]} 41. Rxf7+ {[%emt 0:00:16]} Qxf7 {[%emt 0:00:06]} 42. Qxe4 {[%emt 0:00:38] KQ-KQ} Qf1+ {[%emt 0:00:05] Black mates.} 43. Kh2 {[%emt 0:00:08]} Qf4+ {[%emt 0:00:09]} 44. Qxf4 {[%emt 0:00:07]} gxf4 {[%emt 0:00:02]} 45. Kg2 {[%emt 0:00:14]} Kf6 {[%emt 0:00:04]} 46. Kf3 {[%emt 0:00:08]} Kf5 {[%emt 0:00:05]} 47. c4 {[%emt 0:00:22]} Ke5 {[%emt 0:00:05]} 48. c3 {[%emt 0:00:07]} Kf5 {[%emt 0:00:06] Weighted Error Value: White=0.79/Black=0.07 (flawless)} 0-1

[Event "Paracin Open 2022"]
[Site "Paracin"]
[Date "2022.07.09"]
[Round "3.4"]
[White "Pranav Vijay"]
[Black "Shahil Dey"]
[Result "1/2-1/2"]
[ECO "B28"]
[WhiteElo "2265"]
[BlackElo "2402"]
[Annotator "RC"]
[PlyCount "88"]
[EventDate "2022.07.08"]
[EventCountry "SRB"]
[SourceTitle "playchess.com"]
[Source "ChessBase"]
[SourceQuality "1"]
[TimeControl "5400+30"]

1. e4 {[%emt 0:00:08]} c5 {[%emt 0:00:06]} 2. Nf3 {[%emt 0:00:11]} a6 {[%emt 0:00:04]} 3. c3 {[%emt 0:03:08]} Nf6 {[%emt 0:00:09]} 4. e5 {[%emt 0:01:13]} Nd5 {[%emt 0:00:07]} 5. d4 {[%emt 0:02:24]} cxd4 {[%emt 0:00:07]} 6. Qxd4 {[%emt 0:00:54]} e6 {[%emt 0:00:07]} 7. Bc4 {[%emt 0:00:40]} Nc6 {[%emt 0:00:14]} 8. Qe4 {[%emt 0:00:06]} Nde7 {[%emt 0:02:56]} 9. O-O {[%emt 0:02:00]} Ng6 {[%emt 0:00:34]} 10. Re1 {[%emt 0:04:39]} Qc7 {[%emt 0:02:25]} 11. Bd3 {[%emt 0:04:00]} d6 {[%emt 0:02:43]} 12. exd6 {[%emt 0:03:55]} Bxd6 {[%emt 0:00:06]} 13. Nbd2 {[%emt 0:01:58]} Nce5 {[%emt 0:02:51]} 14. Nxe5 {[%emt 0:05:04]} Nxe5 {[%emt 0:00:27]} 15. Bc2 {[%emt 0:00:02]} Bd7 {[%emt 0:01:40]} 16. Qh4 {[%emt 0:01:18]} f5 {[%emt 0:04:19]} 17. Nf1 {[%emt 0:03:16]} O-O {[%emt 0:02:34]} 18. Bg5 {[%emt 0:02:47]} h6 {[%emt 0:01:50]} 19. Be7 {[%emt 0:00:54]} Bxe7 {[%emt 0:03:38]} 20. Qxe7 {[%emt 0:00:02]} Ng6 {[%emt 0:06:57]} 21. Qa3 {[%emt 0:02:36]} Nf4 {[%emt 0:02:42]} 22. Rad1 {[%emt 0:00:34]} Bc6 {[%emt 0:00:16]} 23. f3 {[%emt 0:03:31]} Rad8 {[%emt 0:01:05]} 24. c4 {[%emt 0:01:32]} Rxd1 {[%emt 0:02:47]} 25. Rxd1 {[%emt 0:00:02]} Rd8 {[%emt 0:00:12]} 26. Qe3 {[%emt 0:01:19]} Rxd1 {[%emt 0:01:00]} 27. Bxd1 {[%emt 0:00:01]} Qd6 {[%emt 0:07:18]} 28. Bc2 {[%emt 0:00:13]} g5 {[%emt 0:06:41]} 29. Kf2 {[%emt 0:02:26]} Kf7 {[%emt 0:00:46]} 30. a3 {[%emt 0:04:25]} Kf6 {[%emt 0:01:20]} 31. b4 {[%emt 0:02:59]} Qe5 {[%emt 0:00:24]} 32. Qd2 {[%emt 0:00:17]} b5 {[%emt 0:11:20]} 33. Ne3 {[%emt 0:02:06]} Ke7 {[%emt 0:06:32]} 34. Bd1 {[%emt 0:03:50]} h5 {[%emt 0:09:37]} 35. c5 {[%emt 0:02:06]} g4 {[%emt 0:09:11]} 36. Kf1 {[%emt 0:41:54]} Nd5 {[%emt 0:02:42]} 37. Nxd5+ {[%emt 0:00:00]} Bxd5 {[%emt 0:00:04]} 38. Kg1 {[%emt 0:00:00]} Qa1 {[%emt 0:02:30]} 39. Kf2 {[%emt 0:00:00]} Qxa3 {[%emt 0:01:26]} 40. Qg5+ {[%emt 0:00:00]} Kd7 {[%emt 0:00:10]} 41. Qg7+ {[%emt 0:00:00]} Kc6 {[%emt 0:00:21]} 42. Qh8 {[%emt 0:00:00]} Kb7 {[%emt 0:03:09]} 43. Qg7+ {[%emt 0:00:00]} Kc6 {[%emt 0:00:18]} 44. Qh8 {[%emt 0:00:00]} Kb7 {[%emt 0:00:08]} 1/2-1/2